fUST/lending_fUST_20241211
["ID","MTS","AMOUNT","RATE_DAILY","PERIOD"]
[345007544,1733929844023,-151.0,0.000297,7]
[345007545,1733929844038,-151.0,0.000297,7]
[345007546,1733929844053,-378.362392,0.000297,7]
[345007547,1733929844069,-378.362392,0.000297,7]
[345007548,1733929844082,-151.0,0.000297,7]
[345007549,1733929844097,-468.778688,0.000297,7]
[345007550,1733929844113,-151.0,0.000297,7]
[345007551,1733929844127,-151.0,0.000297,7]
[345007552,1733929844138,-151.0,0.000297,7]
[345007553,1733929844152,-179.466424,0.000297,7]
[345007554,1733929844164,-151.0,0.000297,7]
[345007555,1733929844178,-377.91732,0.000297,7]
[345007556,1733929844194,-198.718914,0.000297,7]
[345007557,1733929844211,-377.91732,0.000297,7]
[345007558,1733929844225,-198.718914,0.000297,7]
[345007559,1733929844239,-151.0,0.000297,7]
[345007560,1733929844250,-151.0,0.000297,10]
[345007561,1733929844261,-168.303638,0.000297,7]
[345007562,1733929844275,-151.0,0.000297,7]
[345007563,1733929844292,-168.303638,0.000297,7]
[345007564,1733929844304,-151.0,0.000297,7]
[345007565,1733929844317,-151.0,0.000297,7]
[345007566,1733929844332,-289.714166,0.000297,7]
[345007567,1733929844347,-289.714166,0.000297,7]
[345007568,1733929844359,-151.0,0.000297,7]
[345007569,1733929844373,-151.0,0.000297,7]
[345007570,1733929844387,-151.0,0.000297,7]
[345007571,1733929844414,-151.0,0.000297,7]
[345007572,1733929844479,-151.0,0.000297,7]
[345007573,1733929844505,-151.0,0.000297,7]
[345007574,1733929844518,-151.0,0.000297,7]
[345007575,1733929844530,-156.163267,0.000297,7]
[345007576,1733929844543,-332.934841,0.000297,7]
[345007577,1733929844556,-332.934841,0.000297,7]
[345007578,1733929844569,-151.0,0.000297,7]
[345007579,1733929844582,-152.694,0.000297,7]
[345007580,1733929844595,-500.692947,0.000297,7]
[345007581,1733929844608,-500.692947,0.000297,7]
[345007582,1733929844620,-151.0,0.000297,7]
[345007583,1733929844633,-152.889436,0.000297,7]
[345007584,1733929844646,-152.889436,0.000297,7]
[345007585,1733929844661,-151.0,0.000297,7]
[345007586,1733929844677,-151.0,0.000297,7]
[345007587,1733929844690,-151.0,0.000297,7]
[345007588,1733929844703,-151.0,0.000297,7]
[345007589,1733929844723,-255.09215,0.000297,7]
[345007590,1733929844735,-255.09215,0.000297,7]
[345007591,1733929844748,-1000.0,0.00029725,2]
[345007592,1733929844760,-2319.10741124,0.0002973,2]
[345007593,1733929844773,-160.0,0.00029749,10]
[345007594,1733929844785,-34756.20781195,0.0002975,3]
[345007595,1733929844798,-160.0,0.00029762,10]
[345007596,1733929844811,-192.4,0.00029763,7]
[345007597,1733929844823,-5591.21235305,0.00029763,21]
[345007598,1733929844836,-666.0,0.00029763,2]
[345007599,1733929844848,-168.77,0.00029763,7]
[345007600,1733929844860,-169.76,0.00029763,7]
[345007601,1733929844872,-1000.0,0.00029775,2]
[345007602,1733929844884,-1000.0,0.00029788,2]
[345007603,1733929844897,-250.0,0.00029799,2]
[345007604,1733929844913,-160.0,0.00029799,10]
[345007605,1733929844927,-406.0,0.000298,120]
[345007606,1733929844939,-250.0,0.000298,7]
[345007607,1733929844950,-74604.09331681,0.000298,7]
[345007608,1733929844965,-300.325308,0.000298,7]
[345007609,1733929845099,-152.033057,0.000298,7]
[345007610,1733929845123,-152.627305,0.000298,7]
[345007611,1733929845134,-151.0,0.000298,7]
[345007612,1733929845146,-151.0,0.000298,7]
[345007613,1733929845156,-164.044946,0.000298,7]
[345007614,1733929845166,-151.0,0.000298,7]
[345007615,1733929845176,-151.0,0.000298,7]
[345007616,1733929845190,-151.0,0.000298,7]
[345007617,1733929845200,-151.0,0.000298,7]
[345007618,1733929845213,-151.0,0.000298,7]
[345007619,1733929845223,-151.0,0.000298,7]
[345007620,1733929845232,-3000.0,0.000298,2]
[345007621,1733929845243,-249.829976,0.000298,7]
[345007622,1733929845252,-151.0,0.000298,7]
[345007623,1733929845266,-367.782591,0.000298,7]
[345007624,1733929845277,-367.782591,0.000298,7]
[345007625,1733929845287,-151.0,0.000298,7]
[345007626,1733929845298,-151.0,0.000298,7]
[345007627,1733929845308,-151.0,0.000298,7]
[345007628,1733929845319,-378.362392,0.000298,7]
[345007629,1733929845329,-378.362392,0.000298,7]
[345007630,1733929845338,-151.0,0.000298,7]
[345007631,1733929845348,-468.778688,0.000298,7]
[345007632,1733929845358,-291.134651,0.000298,7]
[345007633,1733929845368,-151.0,0.000298,7]
[345007634,1733929845378,-151.0,0.000298,7]
[345007636,1733929845388,-151.0,0.000298,7]
[345007638,1733929845401,-377.91732,0.000298,7]
[345007640,1733929845411,-198.718914,0.000298,7]
[345007643,1733929845421,-377.91732,0.000298,7]
[345007644,1733929845431,-198.718914,0.000298,7]
[345007646,1733929845442,-151.0,0.000298,7]
[345007647,1733929845452,-168.303638,0.000298,7]
[345007648,1733929845467,-151.0,0.000298,7]
[345007649,1733929845478,-168.303638,0.000298,7]
[345007650,1733929845491,-151.0,0.000298,7]
[345007651,1733929845502,-151.0,0.000298,7]
[345007652,1733929845511,-289.714166,0.000298,7]
[345007653,1733929845522,-289.714166,0.000298,7]
[345007654,1733929845532,-151.0,0.000298,7]
[345007656,1733929845542,-151.0,0.000298,7]
[345007657,1733929845551,-151.0,0.000298,7]
[345007659,1733929845562,-151.0,0.000298,7]
[345007660,1733929845572,-151.0,0.000298,7]
[345007662,1733929845582,-151.0,0.000298,7]
[345007663,1733929845593,-151.0,0.000298,7]
[345007664,1733929845603,-332.934841,0.000298,7]
[345007665,1733929845613,-332.934841,0.000298,7]
[345007666,1733929845623,-500.692947,0.000298,7]
[345007667,1733929845634,-500.692947,0.000298,7]
[345007668,1733929845645,-151.0,0.000298,7]
[345007669,1733929845655,-152.889436,0.000298,7]
[345007670,1733929845665,-152.889436,0.000298,7]
[345007671,1733929845674,-151.0,0.000298,7]
[345007672,1733929845684,-151.0,0.000298,7]
[345007673,1733929845694,-500.0,0.000298,31]
[345007675,1733929845704,-151.0,0.000298,7]
[345007677,1733929845722,-151.0,0.000298,7]
[345007679,1733929845733,-255.09215,0.000298,7]
[345007681,1733929845743,-255.09215,0.000298,7]
[345007683,1733929845753,-3000.0,0.0002981,2]
[345007684,1733929845763,-3000.0,0.0002982,2]
[345007686,1733929845773,-3000.0,0.0002983,2]
[345007688,1733929845783,-3000.0,0.0002984,2]
[345007690,1733929845793,-2319.10741124,0.00029846,2]
[345007692,1733929845804,-3000.0,0.0002985,2]
[345007694,1733929845814,-3000.0,0.0002986,2]
[345007696,1733929845825,-160.0,0.00029862,10]
[345007698,1733929845835,-151.0,0.00029862,7]
[345007700,1733929845847,-151.0,0.00029863,7]
[345007702,1733929845857,-151.0,0.00029863,7]
[345007703,1733929845867,-151.465447,0.00029863,7]
[345007705,1733929845876,-151.0,0.00029863,7]
[345007707,1733929845888,-151.0,0.00029863,7]
[345007709,1733929845898,-151.0,0.00029863,7]
[345007711,1733929845908,-151.0,0.00029863,7]
[345007713,1733929845918,-151.0,0.00029863,7]
[345007715,1733929845931,-151.0,0.00029863,7]
[345007717,1733929845942,-151.0,0.00029863,7]
[345007718,1733929845952,-151.0,0.00029863,7]
[345007720,1733929845967,-151.0,0.00029863,7]
[345007722,1733929845976,-151.0,0.00029863,7]
[345007724,1733929845985,-151.0,0.00029863,7]
[345007725,1733929845996,-151.0,0.00029863,7]
[345007727,1733929846007,-151.0,0.00029863,7]
[345007729,1733929846017,-151.0,0.00029863,7]
[345007731,1733929846027,-151.0,0.00029863,7]
[345007733,1733929846037,-151.0,0.00029863,7]
[345007734,1733929846046,-151.0,0.00029863,7]
[345007736,1733929846056,-151.0,0.00029863,7]
[345007737,1733929846066,-151.0,0.00029863,7]
[345007738,1733929846076,-151.0,0.00029863,7]
[345007739,1733929846086,-151.0,0.00029863,7]
[345007740,1733929846101,-151.0,0.00029863,7]
[345007741,1733929846116,-151.0,0.00029863,7]
[345007742,1733929846126,-151.0,0.00029863,7]
[345007743,1733929846136,-241.125009,0.00029863,7]
[345007744,1733929846148,-202.796596,0.00029863,7]
[345007745,1733929846160,-151.0,0.00029863,7]
[345007746,1733929846170,-500.0,0.00029863,7]
[345007747,1733929846180,-500.0,0.00029863,7]
[345007748,1733929846193,-500.0,0.00029863,7]
[345007749,1733929846204,-500.0,0.00029863,7]
[345007750,1733929846220,-500.0,0.00029863,7]
[345007751,1733929846230,-500.0,0.00029863,7]
[345007752,1733929846239,-395.10143806,0.00029863,7]
[345007753,1733929846248,-500.0,0.00029863,7]
[345007754,1733929846258,-500.0,0.00029863,7]
[345007755,1733929846268,-214.49266904,0.00029863,7]
[345007756,1733929846279,-151.0,0.00029863,7]
[345007757,1733929846289,-151.0,0.00029863,7]
[345007758,1733929846298,-151.0,0.00029863,7]
[345007759,1733929846309,-549.43992422,0.00029863,7]
[345007760,1733929846319,-260.58897869,0.00029863,7]
[345007761,1733929846328,-500.0,0.00029863,7]
[345007762,1733929846338,-500.0,0.00029863,7]
[345007763,1733929846347,-579.54462004,0.00029863,7]
[345007764,1733929846358,-500.0,0.00029863,7]
[345007765,1733929846367,-500.0,0.00029863,7]
[345007766,1733929846377,-500.0,0.00029863,7]
[345007767,1733929846387,-500.0,0.00029863,7]
[345007768,1733929846397,-500.0,0.00029863,7]
[345007769,1733929846407,-500.0,0.00029863,7]
[345007770,1733929846417,-500.0,0.00029863,7]
[345007771,1733929846426,-396.88566255,0.00029863,7]
[345007772,1733929846437,-503.13558189,0.00029863,7]
[345007773,1733929846447,-500.0,0.00029863,7]
[345007774,1733929846456,-497.28265952,0.00029863,7]
[345007775,1733929846471,-500.0,0.00029863,7]
[345007776,1733929846481,-500.0,0.00029863,7]
[345007777,1733929846491,-243.76021112,0.00029863,7]
[345007778,1733929846502,-500.0,0.00029863,7]
[345007779,1733929846512,-500.0,0.00029863,7]
[345007780,1733929846522,-505.42710999,0.00029863,7]
[345007781,1733929846532,-500.0,0.00029863,7]
[345007782,1733929846542,-500.0,0.00029863,7]
[345007783,1733929846552,-500.0,0.00029863,7]
[345007784,1733929846562,-500.0,0.00029863,7]
[345007785,1733929846572,-500.0,0.00029863,7]
[345007786,1733929846582,-590.86549083,0.00029863,7]
[345007787,1733929846592,-500.0,0.00029863,7]
[345007788,1733929846602,-500.0,0.00029863,7]
[345007789,1733929846612,-500.0,0.00029863,7]
[345007790,1733929846622,-500.0,0.00029863,7]
[345007791,1733929846631,-500.0,0.00029863,7]
[345007792,1733929846641,-151.0,0.00029863,7]
[345007793,1733929846650,-500.0,0.00029863,7]
[345007794,1733929846659,-151.0,0.00029863,7]
[345007795,1733929846669,-500.0,0.00029863,7]
[345007796,1733929846678,-151.0,0.00029863,7]
[345007797,1733929846688,-503.32598444,0.00029863,7]
[345007798,1733929846698,-155.024844,0.00029863,7]
[345007799,1733929846710,-500.0,0.00029863,7]
[345007800,1733929846721,-500.0,0.00029863,7]
[345007801,1733929846731,-500.0,0.00029863,7]
[345007802,1733929846740,-500.0,0.00029863,7]
[345007803,1733929846750,-577.43690414,0.00029863,7]
[345007804,1733929846760,-500.0,0.00029863,2]
[345007805,1733929846769,-500.0,0.00029863,2]
[345007806,1733929846779,-500.0,0.00029863,2]
[345007807,1733929846788,-500.0,0.00029863,2]
[345007808,1733929846796,-500.0,0.00029863,2]
[345007809,1733929846806,-175.56718044,0.00029863,2]
[345007810,1733929846815,-585.06441287,0.00029863,7]
[345007811,1733929846825,-367.782591,0.00029863,7]
[345007812,1733929846835,-367.782591,0.00029863,7]
[345007813,1733929846845,-367.782591,0.00029863,7]
[345007814,1733929846854,-367.782591,0.00029863,7]
[345007815,1733929846864,-367.782591,0.00029863,7]
[345007816,1733929846874,-367.782591,0.00029863,7]
[345007817,1733929846887,-367.782591,0.00029863,7]
[345007818,1733929846897,-367.782591,0.00029863,7]
[345007819,1733929846907,-367.782591,0.00029863,7]
[345007820,1733929846917,-367.782591,0.00029863,7]
[345007821,1733929846927,-367.782591,0.00029863,7]
[345007822,1733929846937,-367.782591,0.00029863,7]
[345007823,1733929846947,-367.782591,0.00029863,7]
[345007824,1733929846957,-151.0,0.00029863,7]
[345007825,1733929846970,-367.782591,0.00029863,7]
[345007826,1733929846980,-151.0,0.00029863,7]
[345007827,1733929846990,-367.782591,0.00029863,7]
[345007828,1733929847000,-151.0,0.00029863,7]
[345007829,1733929847014,-367.78259999,0.00029863,7]
[345007830,1733929847027,-190.908401,0.00029863,7]
[345007831,1733929847039,-500.0,0.00029863,7]
[345007832,1733929847062,-500.0,0.00029863,7]
[345007833,1733929847078,-500.0,0.00029863,7]
[345007834,1733929847087,-500.0,0.00029863,7]
[345007835,1733929847100,-201.73663942,0.00029863,7]
[345007836,1733929847117,-504.3867459,0.00029863,7]
[345007837,1733929847127,-500.0,0.00029863,7]
[345007838,1733929847138,-508.58746209,0.00029863,7]
[345007839,1733929847147,-500.0,0.00029863,7]
[345007840,1733929847155,-327.13902298,0.00029863,7]
[345007841,1733929847164,-500.0,0.00029863,7]
[345007842,1733929847172,-508.00483774,0.00029863,7]
[345007843,1733929847182,-500.0,0.00029863,7]
[345007844,1733929847191,-500.0,0.00029863,7]
[345007845,1733929847199,-356.31340316,0.00029863,7]
[345007846,1733929847206,-500.0,0.00029863,7]
[345007847,1733929847217,-500.0,0.00029863,7]
[345007848,1733929847227,-460.93340907,0.00029863,7]
[345007849,1733929847237,-591.63962351,0.00029863,7]
[345007850,1733929847247,-169.88,0.00029863,7]
[345007851,1733929847256,-554.83598038,0.00029863,7]
[345007852,1733929847266,-224.412988,0.00029863,7]
[345007853,1733929847275,-224.412988,0.00029863,7]
[345007854,1733929847285,-502.81142216,0.00029863,7]
[345007855,1733929847295,-224.412988,0.00029863,7]
[345007856,1733929847305,-1272.02,0.00029863,7]
[345007857,1733929847315,-224.412982,0.00029863,7]
[345007858,1733929847324,-1272.02,0.00029863,7]
[345007859,1733929847335,-1272.02,0.00029863,7]
[345007860,1733929847429,-1272.02,0.00029863,7]
[345007861,1733929847439,-1272.02,0.00029863,7]
[345007862,1733929847448,-500.0,0.00029863,7]
[345007863,1733929847457,-1272.02,0.00029863,7]
[345007864,1733929847470,-1272.02,0.00029863,7]
[345007865,1733929847479,-1272.02,0.00029863,7]
[345007866,1733929847489,-1272.02,0.00029863,7]
[345007867,1733929847498,-1272.02,0.00029863,7]
[345007868,1733929847507,-1272.02,0.00029863,7]
[345007869,1733929847516,-500.0,0.00029863,7]
[345007870,1733929847524,-1272.02,0.00029863,7]
[345007871,1733929847533,-500.74616518,0.00029863,7]
[345007872,1733929847542,-1272.02,0.00029863,7]
[345007873,1733929847551,-1272.02,0.00029863,7]
[345007874,1733929847559,-1272.02,0.00029863,7]
[345007875,1733929847568,-1272.02,0.00029863,7]
[345007876,1733929847577,-1272.02,0.00029863,7]
[345007877,1733929847585,-1272.02,0.00029863,7]
[345007878,1733929847594,-1272.02,0.00029863,7]
[345007879,1733929847601,-1272.02,0.00029863,7]
[345007880,1733929847609,-1272.02,0.00029863,7]
[345007881,1733929847618,-1272.02,0.00029863,7]
[345007882,1733929847626,-1272.02,0.00029863,7]
[345007883,1733929847634,-1272.22533101,0.00029863,7]
[345007884,1733929847643,-507.54202996,0.00029863,7]
[345007885,1733929847652,-173.55327391,0.00029863,7]
[345007886,1733929847661,-500.0,0.00029863,7]
[345007887,1733929847669,-573.85212544,0.00029863,7]
[345007888,1733929847678,-500.0,0.00029863,7]
[345007889,1733929847686,-258.4045761,0.00029863,7]
[345007890,1733929847694,-500.0,0.00029863,7]
[345007891,1733929847702,-500.0,0.00029863,7]
[345007892,1733929847713,-520.44931537,0.00029863,7]
[345007893,1733929847721,-500.0,0.00029863,7]
[345007894,1733929847730,-515.47266139,0.00029863,7]
[345007895,1733929847739,-468.84894581,0.00029863,7]
[345007896,1733929847747,-236.21980102,0.00029863,7]
[345007897,1733929847755,-208.41463161,0.00029863,7]
[345007898,1733929847765,-500.0,0.00029863,7]
[345007899,1733929847774,-500.0,0.00029863,7]
[345007900,1733929847782,-151.0,0.00029863,7]
[345007901,1733929847791,-151.0,0.00029863,7]
[345007902,1733929847799,-151.0,0.00029863,7]
[345007903,1733929847808,-500.0,0.00029863,7]
[345007904,1733929847817,-151.0,0.00029863,7]
[345007905,1733929847823,-502.34597561,0.00029863,7]
[345007906,1733929847831,-151.0,0.00029863,7]
[345007907,1733929847839,-151.0,0.00029863,7]
[345007908,1733929847846,-151.0,0.00029863,7]
[345007909,1733929847854,-151.0,0.00029863,7]
[345007910,1733929847861,-192.32608423,0.00029863,7]
[345007911,1733929847868,-151.0,0.00029863,7]
[345007912,1733929847874,-151.0,0.00029863,7]
[345007913,1733929847880,-151.0,0.00029863,7]
[345007914,1733929847887,-188.43458004,0.00029863,7]
[345007915,1733929847894,-223.26978,0.00029863,7]
[345007916,1733929847900,-500.0,0.00029863,7]
[345007917,1733929847908,-500.0,0.00029863,7]
[345007918,1733929847914,-500.0,0.00029863,7]
[345007919,1733929847921,-505.43595501,0.00029863,7]
[345007920,1733929847927,-500.0,0.00029863,7]
[345007921,1733929847933,-501.91617241,0.00029863,7]
[345007922,1733929847940,-305.42218202,0.00029863,7]
[345007923,1733929847946,-500.0,0.00029863,7]
[345007924,1733929847955,-500.0,0.00029863,7]
[345007925,1733929847984,-500.0,0.00029863,7]
[345007926,1733929848006,-500.0,0.00029863,7]
[345007927,1733929848016,-500.0,0.00029863,7]
[345007928,1733929848025,-500.0,0.00029863,7]
[345007929,1733929848035,-432.18586386,0.00029863,7]
[345007930,1733929848045,-500.0,0.00029863,7]
[345007931,1733929848054,-502.90449215,0.00029863,7]
[345007932,1733929848063,-500.0,0.00029863,7]
[345007933,1733929848073,-500.0,0.00029863,7]
[345007934,1733929848082,-160.53846045,0.00029863,7]
[345007935,1733929848092,-309.86203016,0.00029863,7]
[345007936,1733929848105,-500.0,0.00029863,7]
[345007937,1733929848114,-500.0,0.00029863,7]
[345007938,1733929848123,-500.0,0.00029863,7]
[345007939,1733929848134,-500.0,0.00029863,7]
[345007940,1733929848143,-528.85183385,0.00029863,7]
[345007941,1733929848154,-500.0,0.00029863,7]
[345007942,1733929848163,-509.4366069,0.00029863,7]
[345007943,1733929848176,-500.0,0.00029863,7]
[345007944,1733929848186,-500.0,0.00029863,7]
[345007945,1733929848195,-505.44678861,0.00029863,7]
[345007946,1733929848205,-508.11426144,0.00029863,7]
[345007947,1733929848217,-500.0,0.00029863,7]
[345007948,1733929848226,-500.0,0.00029863,7]
[345007949,1733929848235,-500.0,0.00029863,7]
[345007950,1733929848245,-513.50678982,0.00029863,7]
[345007951,1733929848255,-503.7206223,0.00029863,7]
[345007952,1733929848265,-378.91608424,0.00029863,7]
[345007953,1733929848274,-505.47101836,0.00029863,7]
[345007954,1733929848283,-518.03,0.00029863,7]
[345007955,1733929848291,-518.03,0.00029863,7]
[345007956,1733929848301,-518.03,0.00029863,7]
[345007957,1733929848311,-518.03,0.00029863,7]
[345007958,1733929848320,-518.03,0.00029863,7]
[345007959,1733929848330,-500.0,0.00029863,7]
[345007960,1733929848339,-518.03,0.00029863,7]
[345007961,1733929848350,-500.0,0.00029863,7]
[345007962,1733929848359,-518.03,0.00029863,7]
[345007963,1733929848368,-181.38893086,0.00029863,7]
[345007964,1733929848378,-518.03,0.00029863,7]
[345007965,1733929848388,-518.03,0.00029863,7]
[345007966,1733929848397,-518.03,0.00029863,7]
[345007967,1733929848406,-518.03,0.00029863,7]
[345007968,1733929848415,-518.03,0.00029863,7]
[345007969,1733929848423,-518.03,0.00029863,7]
[345007970,1733929848432,-518.03,0.00029863,7]
[345007971,1733929848441,-511.55429335,0.00029863,7]
[345007972,1733929848450,-518.03,0.00029863,7]
[345007973,1733929848460,-518.03,0.00029863,7]
[345007974,1733929848469,-518.03,0.00029863,7]
[345007975,1733929848477,-518.03,0.00029863,7]
[345007976,1733929848486,-518.03,0.00029863,7]
[345007977,1733929848495,-518.03,0.00029863,7]
[345007978,1733929848504,-518.03,0.00029863,7]
[345007979,1733929848512,-518.03,0.00029863,7]
[345007980,1733929848521,-518.03,0.00029863,7]
[345007981,1733929848529,-518.18047871,0.00029863,7]
[345007982,1733929848539,-500.0,0.00029863,7]
[345007983,1733929848548,-155.20023296,0.00029863,7]
[345007984,1733929848557,-825.03,0.00029863,2]
[345007985,1733929848566,-825.03,0.00029863,2]
[345007986,1733929848574,-825.03,0.00029863,2]
[345007987,1733929848581,-825.03,0.00029863,2]
[345007988,1733929848588,-825.03,0.00029863,2]
[345007989,1733929848596,-917.09,0.00029863,7]
[345007990,1733929848603,-825.03,0.00029863,2]
[345007991,1733929848610,-917.09,0.00029863,7]
[345007992,1733929848618,-825.03,0.00029863,2]
[345007993,1733929848624,-917.09,0.00029863,7]
[345007994,1733929848632,-825.03,0.00029863,2]
[345007995,1733929848640,-917.09,0.00029863,7]
[345007996,1733929848648,-825.03,0.00029863,2]
[345007997,1733929848655,-825.03,0.00029863,2]
[345007998,1733929848662,-917.09,0.00029863,7]
[345007999,1733929848669,-825.03,0.00029863,2]
[345008000,1733929848677,-917.09,0.00029863,7]
[345008001,1733929848687,-825.03,0.00029863,2]
[345008002,1733929848696,-917.09,0.00029863,7]
[345008003,1733929848706,-825.03,0.00029863,2]
[345008004,1733929848717,-917.09,0.00029863,7]
[345008005,1733929848727,-825.03,0.00029863,2]
[345008006,1733929848736,-917.09,0.00029863,7]
[345008007,1733929848746,-825.03,0.00029863,2]
[345008008,1733929848756,-917.09,0.00029863,7]
[345008009,1733929848766,-825.03,0.00029863,2]
[345008010,1733929848776,-917.09,0.00029863,7]
[345008011,1733929848786,-825.03,0.00029863,2]
[345008012,1733929848795,-917.09,0.00029863,7]
[345008013,1733929848804,-825.03,0.00029863,2]
[345008014,1733929848814,-917.09,0.00029863,7]
[345008015,1733929848823,-825.03,0.00029863,2]
[345008016,1733929848832,-825.03,0.00029863,2]
[345008017,1733929848841,-917.09,0.00029863,7]
[345008018,1733929848851,-825.03,0.00029863,2]
[345008019,1733929848861,-825.03,0.00029863,2]
[345008020,1733929848871,-825.03,0.00029863,2]
[345008021,1733929848881,-917.09,0.00029863,7]
[345008022,1733929848891,-825.226987,0.00029863,2]
[345008023,1733929848901,-917.09,0.00029863,7]
[345008024,1733929848911,-917.09,0.00029863,7]
[345008025,1733929848921,-503.82977174,0.00029863,7]
[345008026,1733929848930,-917.09,0.00029863,7]
[345008027,1733929848939,-917.09,0.00029863,7]
[345008028,1733929848949,-917.09,0.00029863,7]
[345008029,1733929848960,-917.09,0.00029863,7]
[345008030,1733929848970,-917.09,0.00029863,7]
[345008031,1733929848978,-500.0,0.00029863,7]
[345008032,1733929848987,-917.09,0.00029863,7]
[345008033,1733929848996,-500.0,0.00029863,7]
[345008034,1733929849004,-917.14028236,0.00029863,7]
[345008035,1733929849013,-500.0,0.00029863,7]
[345008036,1733929849022,-500.0,0.00029863,7]
[345008037,1733929849031,-500.0,0.00029863,7]
[345008038,1733929849041,-500.0,0.00029863,7]
[345008039,1733929849050,-500.0,0.00029863,7]
[345008040,1733929849059,-518.25614227,0.00029863,7]
[345008041,1733929849067,-500.0,0.00029863,7]
[345008042,1733929849076,-500.0,0.00029863,7]
[345008043,1733929849085,-500.77518257,0.00029863,7]
[345008044,1733929849095,-500.0,0.00029863,7]
[345008045,1733929849107,-500.0,0.00029863,7]
[345008046,1733929849117,-500.0,0.00029863,7]
[345008047,1733929849126,-599.72125368,0.00029863,7]
[345008048,1733929849135,-500.0,0.00029863,7]
[345008049,1733929849142,-500.0,0.00029863,7]
[345008050,1733929849152,-500.0,0.00029863,7]
[345008051,1733929849159,-500.0,0.00029863,7]
[345008052,1733929849167,-500.0,0.00029863,7]
[345008053,1733929849175,-504.9739875,0.00029863,7]
[345008054,1733929849182,-500.0,0.00029863,7]
[345008055,1733929849191,-500.0,0.00029863,7]
[345008056,1733929849198,-504.59375505,0.00029863,7]
[345008057,1733929849207,-511.48511632,0.00029863,7]
[345008058,1733929849305,-500.0,0.00029863,7]
[345008059,1733929849315,-500.0,0.00029863,7]
[345008060,1733929849324,-500.0,0.00029863,7]
[345008061,1733929849333,-500.0,0.00029863,7]
[345008062,1733929849343,-270.9773104,0.00029863,7]
[345008063,1733929849354,-500.0,0.00029863,7]
[345008064,1733929849364,-500.0,0.00029863,7]
[345008065,1733929849374,-500.0,0.00029863,7]
[345008066,1733929849384,-500.0,0.00029863,7]
[345008067,1733929849393,-500.0,0.00029863,7]
[345008068,1733929849402,-500.0,0.00029863,7]
[345008069,1733929849412,-500.0,0.00029863,7]
[345008070,1733929849422,-500.0,0.00029863,7]
[345008071,1733929849431,-508.56,0.00029863,7]
[345008072,1733929849441,-500.0,0.00029863,7]
[345008073,1733929849450,-500.0,0.00029863,7]
[345008074,1733929849460,-500.0,0.00029863,7]
[345008075,1733929849472,-500.0,0.00029863,7]
[345008076,1733929849481,-624.58315737,0.00029863,7]
[345008077,1733929849491,-500.39812828,0.00029863,7]
[345008078,1733929849500,-500.0,0.00029863,7]
[345008079,1733929849509,-500.0,0.00029863,7]
[345008080,1733929849518,-258.24521956,0.00029863,7]
[345008081,1733929849527,-500.0,0.00029863,7]